fUST/lending_fUST_20250822
["ID","MTS","AMOUNT","RATE_DAILY","PERIOD"]
[380502402,1755795153348,500.0,0.00022013,120]
[380502403,1755795154098,500.0,0.00022013,120]
[380502404,1755795155050,500.0,0.00022013,120]
[380502405,1755795155949,500.0,0.00022013,120]
[380502406,1755795156820,500.0,0.00022013,120]
[380502407,1755795157713,500.0,0.00022013,120]
[380502408,1755795158587,500.0,0.00022013,120]
[380502409,1755795159459,500.0,0.00022013,120]
[380502410,1755795160319,500.0,0.00022013,120]
[380502411,1755795161183,500.0,0.00022013,120]
[380502412,1755795161966,500.0,0.00022013,120]
[380502413,1755795162869,500.0,0.00022013,120]
[380502414,1755795163654,500.0,0.00022013,120]
[380502415,1755795164535,500.0,0.00022013,120]
[380502416,1755795166357,500.0,0.00022013,120]
[380502417,1755795167222,500.0,0.00022013,120]
[380502418,1755795168095,500.0,0.00022013,120]
[380502419,1755795168977,500.0,0.00022013,120]
[380502420,1755795169874,500.0,0.00022013,120]
[380502421,1755795170909,500.0,0.00022013,120]
[380502422,1755795171736,500.0,0.00022013,120]
[380502423,1755795172507,500.0,0.00022013,120]
[380502424,1755795173290,500.0,0.00022013,120]
[380502425,1755795174158,500.0,0.00022013,120]
[380502426,1755795175046,500.0,0.00022013,120]
[380502427,1755795175964,500.0,0.00022013,120]
[380502428,1755795177200,500.0,0.00022013,120]
[380502429,1755795178746,500.0,0.00022013,120]
[380502430,1755795179624,500.0,0.00022013,120]
[380502431,1755795181085,500.0,0.00022013,120]
[380502432,1755795181871,500.0,0.00022013,120]
[380502433,1755795182753,500.0,0.00022013,120]
[380502434,1755795183529,500.0,0.00022013,120]
[380502435,1755795184388,500.0,0.00022013,120]
[380502436,1755795185275,500.0,0.00022013,120]
[380502437,1755795186148,500.0,0.00022013,120]
[380502438,1755795187024,500.0,0.00022013,120]
[380502439,1755795188014,500.0,0.00022013,120]
[380502440,1755795188892,500.0,0.00022013,120]
[380502441,1755795189762,500.0,0.00022013,120]
[380502442,1755795190625,500.0,0.00022013,120]
[380502443,1755795192238,500.0,0.00022013,120]
[380502444,1755795193002,500.0,0.00022013,120]
[380502445,1755795193915,500.0,0.00022013,120]
[380502446,1755795194750,500.0,0.00022013,120]
[380502447,1755795195640,500.0,0.00022013,120]
[380502448,1755795196500,500.0,0.00022013,120]
[380502449,1755795197377,500.0,0.00022013,120]
[380502450,1755795198240,500.0,0.00022013,120]
[380502451,1755795199105,500.0,0.00022013,120]
[380502452,1755795199984,500.0,0.00022013,120]
[380502453,1755795200868,500.0,0.00022013,120]
[380502454,1755795201653,500.0,0.00022013,120]
[380502455,1755795202448,500.0,0.00022013,120]
[380502456,1755795203230,500.0,0.00022013,120]
[380502457,1755795204166,500.0,0.00022013,120]
[380502458,1755795204998,500.0,0.00022013,120]
[380502459,1755795205925,500.0,0.00022013,120]
[380502460,1755795206890,500.0,0.00022013,120]
[380502461,1755795207760,500.0,0.00022013,120]
[380502462,1755795208611,500.0,0.00022013,120]
[380502463,1755795209494,500.0,0.00022013,120]
[380502464,1755795210419,500.0,0.00022013,120]
[380502465,1755795211287,500.0,0.00022013,120]
[380502466,1755795213262,500.0,0.00022013,120]
[380502467,1755795214315,566.26,0.00022013,120]
[380502468,1755795236437,-245.21620298,0.00019617,3]
[380502469,1755795238583,-331.22379702,0.00019617,3]
[380502470,1755795248037,1000.0,0.00027,120]
[380502471,1755795274813,1602.75354158,0.00019537,2]
[380502472,1755795274835,4188.16045123,0.00019537,2]
[380502473,1755795280163,500.0,0.00022013,120]
[380502474,1755795281044,500.0,0.00022013,120]
[380502475,1755795282151,1373.7018125,0.00018629,2]
[380502476,1755795335915,-300.0,0.00019625,2]
[380502477,1755795335939,-1200.0,0.00019625,2]
[380502478,1755795335961,-300.0,0.00019625,2]
[380502479,1755795335983,-300.0,0.00019625,2]
[380502480,1755795336007,-160.0,0.00019626,2]
[380502481,1755795336028,-1200.0,0.00019626,2]
[380502482,1755795336053,-1005.13,0.00019626,2]
[380502483,1755795336075,-480.0,0.00019626,2]
[380502484,1755795336099,-500.0,0.00019626,2]
[380502485,1755795336121,-31624.36309902,0.00019626,2]
[380502486,1755795336147,-500.0,0.00019626,2]
[380502487,1755795336169,-500.0,0.00019626,2]
[380502488,1755795336190,-500.0,0.00019626,2]
[380502489,1755795336213,-500.0,0.00019626,2]
[380502490,1755795336236,-212.39633134,0.00019626,2]
[380502491,1755795336259,-188.46337404,0.00019626,2]
[380502492,1755795336282,-294.00356664,0.00019626,2]
[380502493,1755795336306,-429.94321138,0.00019626,2]
[380502494,1755795336330,-500.0,0.00019626,2]
[380502495,1755795336353,-500.0,0.00019626,2]
[380502496,1755795336374,-174.62207734,0.00019626,2]
[380502497,1755795336398,-500.0,0.00019626,2]
[380502498,1755795336422,-500.0,0.00019626,2]
[380502499,1755795336445,-163.2,0.00019626,2]
[380502500,1755795336468,-500.0,0.00019626,2]
[380502501,1755795336672,-500.0,0.00019626,2]
[380502502,1755795336695,-500.0,0.00019626,2]
[380502503,1755795336717,-500.0,0.00019626,2]
[380502504,1755795336739,-545.03661935,0.00019626,2]
[380502505,1755795336761,-500.0,0.00019626,2]
[380502506,1755795336784,-500.0,0.00019626,2]
[380502507,1755795336808,-500.0,0.00019626,2]
[380502508,1755795336834,-500.0,0.00019626,2]
[380502509,1755795336859,-500.0,0.00019626,2]
[380502510,1755795336883,-500.0,0.00019626,2]
[380502511,1755795336905,-500.0,0.00019626,2]
[380502512,1755795336926,-431.76060323,0.00019626,2]
[380502513,1755795336949,-500.0,0.00019626,2]
[380502514,1755795336974,-500.0,0.00019626,2]
[380502515,1755795337002,-500.0,0.00019626,2]
[380502516,1755795337025,-500.0,0.00019626,2]
[380502517,1755795337051,-500.0,0.00019626,2]
[380502518,1755795337074,-500.0,0.00019626,2]
[380502519,1755795337097,-500.0,0.00019626,2]
[380502520,1755795337124,-500.0,0.00019626,2]
[380502521,1755795337148,-500.0,0.00019626,2]
[380502522,1755795337173,-500.0,0.00019626,2]
[380502523,1755795337196,-500.0,0.00019626,2]
[380502524,1755795337220,-500.0,0.00019626,2]
[380502525,1755795337244,-500.0,0.00019626,2]
[380502526,1755795337267,-235.73411635,0.00019626,2]
[380502527,1755795337290,-500.0,0.00019626,2]
[380502528,1755795337314,-500.0,0.00019626,2]
[380502529,1755795337338,-500.0,0.00019626,2]
[380502530,1755795337361,-500.0,0.00019626,2]
[380502531,1755795337383,-500.0,0.00019626,2]
[380502532,1755795337405,-500.0,0.00019626,2]
[380502533,1755795337427,-500.0,0.00019626,2]
[380502534,1755795337450,-432.63827651,0.00019626,2]
[380502535,1755795337477,-500.0,0.00019626,2]
[380502536,1755795337501,-500.0,0.00019626,2]
[380502537,1755795337527,-500.0,0.00019626,2]
[380502538,1755795337551,-500.0,0.00019626,2]
[380502539,1755795337573,-500.0,0.00019626,2]
[380502540,1755795337597,-500.0,0.00019626,2]
[380502541,1755795337620,-500.0,0.00019626,2]
[380502542,1755795337643,-500.0,0.00019626,2]
[380502543,1755795337668,-500.0,0.00019626,2]
[380502544,1755795337693,-500.0,0.00019626,2]
[380502545,1755795337716,-619.41787419,0.00019626,2]
[380502546,1755795337738,-500.0,0.00019626,2]
[380502547,1755795337759,-500.0,0.00019626,2]
[380502548,1755795337780,-500.0,0.00019626,2]
[380502549,1755795337805,-500.0,0.00019626,2]
[380502550,1755795337828,-500.0,0.00019626,2]
[380502551,1755795337854,-500.0,0.00019626,2]
[380502552,1755795337882,-500.0,0.00019626,2]
[380502553,1755795337904,-500.0,0.00019626,2]
[380502554,1755795337926,-500.0,0.00019626,2]
[380502555,1755795337947,-500.0,0.00019626,2]
[380502556,1755795337968,-500.0,0.00019626,2]
[380502557,1755795337989,-500.0,0.00019626,2]
[380502558,1755795338010,-500.0,0.00019626,2]
[380502559,1755795338032,-500.0,0.00019626,2]
[380502560,1755795338053,-500.0,0.00019626,2]
[380502561,1755795338077,-500.0,0.00019626,2]
[380502562,1755795338099,-500.0,0.00019626,2]
[380502563,1755795338126,-1976.68545516,0.00019626,2]
[380502564,1755795338149,-24226.60539545,0.00019627,2]
[380502571,1755795363292,345.430671,0.00013699,2]
[380502573,1755795365302,4092.70706527,0.00018682,2]
[380502574,1755795365324,10000.0,0.00018682,2]
[380502575,1755795365346,5291.18459103,0.00018682,2]
[380502576,1755795372980,4708.81540897,0.00019178,2]
[380502577,1755795373001,291.18459103,0.00019178,2]
[380502578,1755795404358,340.89911003,0.00019557,2]
[380502579,1755795405484,-204.18532328,0.00019617,3]
[380502580,1755795447648,1106.52832239,0.00019599,2]
[380502581,1755795451063,200.0,0.0002612,120]
[380502582,1755795451286,2102.56067696,0.00019537,2]
[380502583,1755795511109,200.0,0.00026481,120]
[380502584,1755795535558,4476.05393586,0.00019537,2]
[380502585,1755795571220,200.0,0.00027071,120]
[380502586,1755795581016,179.67658215,0.00019472,2]
[380502587,1755795611163,-152.0,0.00019615,2]
[380502588,1755795612630,-280.65913737,0.00019615,2]
[380502589,1755795614038,-67.34086263,0.00019615,2]
[380502590,1755795614060,-96.11934433,0.00019615,2]
[380502605,1755795674412,185.0868183,0.00018625,2]
[380502606,1755795691287,200.0,0.00026903,120]
[380502607,1755795711872,227.26607335,0.00019557,2]
[380502608,1755795751058,200.0,0.00027294,120]
[380502609,1755795788671,199.5,0.00015984,2]
[380502610,1755795790104,199.5,0.00015984,2]
[380502611,1755795792479,691.74388993,0.00019537,2]
[380502612,1755795792502,990.30465163,0.00019537,2]
[380502613,1755795796003,4923.83823078,0.00019537,2]
[380502614,1755795953091,-752.62449508,0.00019614,2]
[380502615,1755795991047,200.0,0.00026055,120]
[380502616,1755796052032,200.0,0.00027396,120]
[380502617,1755796056367,3282.55882052,0.00019537,2]
[380502618,1755796067289,231.3700312,0.00019178,2]
[380502619,1755796096915,571.92826587,0.00019178,2]
[380502620,1755796096936,4428.07173413,0.00019178,2]
[380502621,1755796132894,1345.63883324,0.00019537,2]
[380502622,1755796149084,-1200.0,0.00019614,2]
[380502623,1755796149105,-200.0,0.00019614,2]
[380502624,1755796149125,-150.77373924,0.00019614,2]
[380502625,1755796149143,-651.0,0.00019614,2]
[380502626,1755796149164,-300.0,0.00019614,2]
[380502627,1755796149186,-500.0,0.00019615,2]
[380502628,1755796149210,-500.0,0.00019615,2]
[380502629,1755796149233,-500.0,0.00019615,2]
[380502630,1755796149253,-405.6624619,0.00019615,2]
[380502631,1755796149274,-254.07733947,0.00019615,2]
[380502632,1755796149296,-480.0,0.00019622,2]
[380502633,1755796149316,-553.68,0.00019622,2]
[380502634,1755796149340,-240.60915166,0.00019623,2]
[380502635,1755796149548,-480.0,0.00019623,2]
[380502636,1755796149571,-931.73,0.00019623,2]
[380502637,1755796149596,-1029.93,0.00019623,2]
[380502638,1755796149618,-1063.25,0.00019623,2]
[380502639,1755796149640,-3424.39,0.00019623,2]
[380502640,1755796149660,-480.0,0.00019623,2]
[380502641,1755796149679,-406.92346969,0.00019623,2]
[380502642,1755796149701,-2013.73546327,0.00019623,2]
[380502643,1755796158118,-952.91,0.00019622,2]
[380502644,1755796158140,-3710.90453673,0.00019623,2]
[380502645,1755796158161,-480.0,0.00019623,2]
[380502646,1755796158182,-3111.45,0.00019623,2]
[380502647,1755796158209,-638.16,0.00019623,2]
[380502648,1755796158230,-1517.06,0.00019623,2]
[380502649,1755796158252,-1101.04,0.00019623,2]
[380502650,1755796158273,-480.0,0.00019623,2]
[380502651,1755796158293,-480.0,0.00019623,2]
[380502652,1755796158314,-4775.52,0.00019623,2]
[380502653,1755796158337,-480.0,0.00019623,2]
[380502654,1755796158359,-6987.43,0.00019623,2]
[380502655,1755796158383,-3878.59,0.00019623,2]
[380502656,1755796158404,-1093.09,0.00019623,2]
[380502657,1755796158427,-480.0,0.00019623,2]
[380502658,1755796158449,-2831.65,0.00019623,2]
[380502659,1755796158470,-899.66,0.00019623,2]
[380502660,1755796158491,-37579.98864438,0.00019623,2]
[380502661,1755796158510,-480.0,0.00019624,2]
[380502662,1755796158533,-214.64006703,0.00019624,2]
[380502663,1755796158553,-500.0,0.00019624,2]
[380502664,1755796158574,-500.0,0.00019624,2]
[380502665,1755796158594,-500.0,0.00019624,2]
[380502666,1755796158615,-62.87187257,0.00019624,2]
[380502901,1755796232237,-1069.9,0.00019622,2]
[380502902,1755796232247,-841.6,0.00019622,2]
[380502903,1755796232256,-300.0,0.00019622,2]
[380502904,1755796232265,-1200.0,0.00019622,2]
[380502905,1755796232274,-480.0,0.00019622,2]
[380502906,1755796232284,-1098.95,0.00019622,2]
[380502907,1755796232293,-480.0,0.00019622,2]
[380502908,1755796232302,-480.0,0.00019622,2]
[380502909,1755796232312,-316.96944826,0.00019622,2]
[380502910,1755796232321,-3918.0,0.00019623,2]
[380502911,1755796232330,-1555.41,0.00019623,2]
[380502912,1755796232339,-480.0,0.00019623,2]
[380502914,1755796232348,-480.0,0.00019623,2]
[380502915,1755796232362,-480.0,0.00019623,2]
[380502916,1755796232371,-596.22,0.00019623,2]
[380502917,1755796232379,-708.6,0.00019623,2]
[380502918,1755796232390,-437.12812743,0.00019624,2]
[380502919,1755796232400,-637.30379071,0.00019624,2]
[380502920,1755796232409,-171.67073548,0.00019624,2]
[380502921,1755796232420,-184.8,0.00019624,2]
[380502922,1755796232430,-513.26865269,0.00019624,2]
[380502923,1755796232439,-480.0,0.00019625,2]
[380502924,1755796232448,-460.0,0.00019625,2]
[380502925,1755796232458,-480.0,0.00019625,2]
[380502926,1755796232468,-480.0,0.00019625,2]
[380502927,1755796232477,-704.13,0.00019625,2]
[380502928,1755796232485,-480.0,0.00019625,2]
[380502929,1755796232495,-845.88,0.00019625,2]
[380502930,1755796232503,-480.0,0.00019625,2]
[380502931,1755796232512,-480.0,0.00019625,2]
[380502932,1755796232522,-463.98850853,0.00019625,2]
[380502933,1755796232530,-479.19582504,0.00019625,2]
[380502934,1755796232539,-480.0,0.00019625,2]
[380502936,1755796232549,-460.0,0.00019625,2]
[380502938,1755796232558,-480.0,0.00019625,2]
[380502940,1755796232567,-480.0,0.00019625,2]
[380502941,1755796232576,-480.0,0.00019625,2]
[380502942,1755796232585,-463.85154358,0.00019625,2]
[380502943,1755796232594,-480.0,0.00019625,2]
[380502944,1755796232604,-480.0,0.00019625,2]
[380502946,1755796232613,-480.0,0.00019625,2]
[380502948,1755796232623,-480.0,0.00019625,2]
[380502950,1755796232632,-442.23049986,0.00019625,2]
[380502951,1755796232642,-480.0,0.00019625,2]
[380502952,1755796232651,-440.54791943,0.00019625,2]
[380502954,1755796232660,-480.0,0.00019625,2]
[380502955,1755796232671,-480.0,0.00019625,2]
[380502956,1755796232680,-480.0,0.00019625,2]
[380502957,1755796232689,-438.14899068,0.00019625,2]
[380502959,1755796232700,-480.0,0.00019625,2]
[380502961,1755796232720,-337.8440355,0.00019625,2]
[380502962,1755796232729,-480.0,0.00019625,2]
[380502963,1755796232738,-480.0,0.00019625,2]
[380502965,1755796232748,-480.0,0.00019625,2]
[380502967,1755796232757,-480.0,0.00019625,2]
[380502969,1755796232767,-480.0,0.00019625,2]
[380502970,1755796232776,-480.0,0.00019625,2]
[380502971,1755796232785,-480.0,0.00019625,2]
[380502972,1755796232795,-480.0,0.00019625,2]
[380502973,1755796232804,-480.0,0.00019625,2]
[380502974,1755796232814,-1251.4,0.00019625,2]
[380502975,1755796232823,-480.0,0.00019625,2]
[380502976,1755796232831,-1860.53,0.00019625,2]
[380502977,1755796232840,-431.3706407,0.00019625,2]
[380502978,1755796232850,-480.0,0.00019625,2]
[380502979,1755796232858,-1217.86,0.00019625,2]
[380502980,1755796232868,-480.0,0.00019625,2]
[380502981,1755796232877,-584.1,0.00019625,2]
[380502982,1755796232886,-480.0,0.00019625,2]
[380502983,1755796232896,-566.7,0.00019625,2]
[380502984,1755796232905,-480.0,0.00019625,2]
[380502985,1755796232915,-480.0,0.00019625,2]
[380502986,1755796232924,-284.0394115,0.00019625,2]
[380502987,1755796232952,-195.9605885,0.00019625,2]
[380502988,1755796232962,-480.0,0.00019625,2]
[380502989,1755796232971,-480.0,0.00019625,2]
[380502990,1755796232981,-461.63460395,0.00019625,2]
[380502991,1755796232991,-461.31979162,0.00019625,2]
[380502992,1755796233001,-480.0,0.00019625,2]
[380502993,1755796233010,-480.0,0.00019625,2]
[380502994,1755796233020,-480.0,0.00019625,2]
[380502995,1755796233031,-480.0,0.00019625,2]
[380502996,1755796233040,-480.0,0.00019625,2]
[380502997,1755796233050,-462.84227019,0.00019625,2]
[380502998,1755796233060,-479.67140035,0.00019625,2]
[380502999,1755796233070,-367.28583119,0.00019625,2]
[380503000,1755796233079,-430.95675496,0.00019625,2]
[380503001,1755796233088,-251.07342321,0.00019625,2]
[380503002,1755796233099,-480.0,0.00019625,2]
[380503003,1755796233109,-480.0,0.00019625,2]
[380503004,1755796233119,-480.0,0.00019625,2]
[380503005,1755796233129,-563.95783819,0.00019625,2]
[380503006,1755796233138,-480.0,0.00019625,2]
[380503007,1755796233147,-1339.59,0.00019625,2]
[380503008,1755796233157,-764.64,0.00019625,2]
[380503009,1755796233166,-1403.75,0.00019625,2]
[380503010,1755796233175,-480.0,0.00019625,2]
[380503011,1755796233185,-493.09,0.00019625,2]
[380503012,1755796233195,-480.0,0.00019625,2]
[380503013,1755796233205,-1591.86,0.00019625,2]
[380503014,1755796233215,-1264.66,0.00019625,2]
[380503015,1755796233224,-480.0,0.00019625,2]
[380503016,1755796233234,-480.0,0.00019625,2]
[380503017,1755796233245,-480.0,0.00019625,2]
[380503018,1755796233254,-480.0,0.00019625,2]
[380503019,1755796233264,-638.49,0.00019625,2]
[380503020,1755796233274,-480.0,0.00019625,2]
[380503021,1755796233283,-898.89,0.00019625,2]
[380503022,1755796233292,-480.0,0.00019625,2]
[380503023,1755796233302,-712.51,0.00019625,2]
[380503024,1755796233311,-1704.85,0.00019625,2]
[380503025,1755796233321,-578.35,0.00019625,2]
[380503026,1755796233332,-480.29916822,0.00019625,2]
[380503027,1755796233342,-1348.45,0.00019625,2]
[380503028,1755796233353,-480.0,0.00019625,2]
[380503029,1755796233364,-480.0,0.00019625,2]
[380503030,1755796233374,-480.0,0.00019625,2]
[380503031,1755796233384,-480.0,0.00019625,2]
[380503032,1755796233394,-480.0,0.00019625,2]
[380503033,1755796233404,-151.49952695,0.00019625,2]
[380503034,1755796233413,-1704.87,0.00019625,2]
[380503035,1755796233423,-480.0,0.00019625,2]
[380503036,1755796233434,-1021.37,0.00019625,2]
[380503037,1755796233443,-480.0,0.00019625,2]
[380503038,1755796233453,-480.0,0.00019625,2]
[380503039,1755796233462,-2738.27,0.00019625,2]
[380503040,1755796233472,-764.6,0.00019625,2]
[380503041,1755796233481,-1669.08,0.00019625,2]
[380503042,1755796233491,-3186.28,0.00019625,2]
[380503043,1755796233500,-2363.46,0.00019625,2]
[380503044,1755796233509,-862.84,0.00019625,2]
[380503045,1755796233519,-480.0,0.00019625,2]
[380503046,1755796233529,-1526.94,0.00019625,2]
[380503047,1755796233538,-480.0,0.00019625,2]
[380503048,1755796233547,-517.72,0.00019625,2]
[380503049,1755796233557,-9195.93880266,0.00019625,2]
[380503057,1755796238079,-480.0,0.00019622,2]
[380503058,1755796238088,-1773.59,0.00019623,2]
[380503059,1755796238097,-4294.63119734,0.00019625,2]
[380503060,1755796238106,-480.0,0.00019625,2]
[380503061,1755796238115,-749.78,0.00019625,2]
[380503062,1755796238124,-514.0,0.00019625,2]
[380503063,1755796238132,-480.0,0.00019625,2]
[380503064,1755796238141,-3003.54,0.00019625,2]
[380503065,1755796238150,-185.30960158,0.00019625,2]
[380503066,1755796238159,-480.0,0.00019625,2]
[380503067,1755796238169,-725.46,0.00019625,2]
[380503068,1755796238178,-480.0,0.00019625,2]
[380503070,1755796238187,-480.0,0.00019625,2]
[380503072,1755796238196,-12836.72,0.00019625,2]
[380503073,1755796238204,-480.0,0.00019625,2]
[380503075,1755796238213,-480.0,0.00019625,2]
[380503077,1755796238222,-461.98463166,0.00019625,2]
[380503079,1755796238232,-1243.1,0.00019625,2]
[380503080,1755796238241,-480.0,0.00019625,2]
[380503081,1755796238250,-1609.93,0.00019625,2]
[380503082,1755796238258,-480.0,0.00019625,2]
[380503083,1755796238267,-480.0,0.00019625,2]
[380503084,1755796238275,-480.0,0.00019625,2]
[380503085,1755796238285,-480.0,0.00019625,2]
[380503086,1755796238294,-480.0,0.00019625,2]
[380503087,1755796238303,-8565.46,0.00019625,2]
[380503088,1755796238312,-480.0,0.00019625,2]
[380503089,1755796238322,-160.0,0.00019626,2]
[380503090,1755796238331,-460.79770301,0.00019626,2]
[380503091,1755796238341,-237.2109269,0.00019626,2]
[380503092,1755796238351,-513.5,0.00019626,2]
[380503093,1755796238364,-2071.92,0.00019626,2]
[380503094,1755796238374,-1723.01,0.00019626,2]
[380503095,1755796238384,-480.0,0.00019626,2]
[380503096,1755796238393,-3623.53,0.00019626,2]
[380503097,1755796238404,-1000.0,0.00019627,2]
[380503098,1755796238413,-1000.0,0.00019627,2]
[380503099,1755796238424,-1000.0,0.00019627,2]
[380503100,1755796238433,-1000.0,0.00019627,2]
[380503101,1755796238444,-1007.68024135,0.00019627,2]
[380503102,1755796238453,-213.869245,0.00019627,10]
[380503103,1755796238463,-345773.39460455,0.00019627,2]
[380503104,1755796238472,-500.0,0.00019637,2]
[380503105,1755796238482,-480.0,0.00019637,2]
[380503106,1755796238491,-513.47,0.00019637,2]
[380503107,1755796238502,-480.0,0.00019637,2]
[380503108,1755796238511,-481.12,0.00019637,2]
[380503109,1755796238521,-480.0,0.00019637,2]
[380503110,1755796238530,-1100.62,0.00019637,2]
[380503111,1755796238539,-676.36,0.00019637,2]
[380503112,1755796238549,-3021.891603,0.00019637,2]
[380503113,1755796238558,-544.49,0.00019637,2]
[380503114,1755796238568,-480.0,0.00019637,2]
[380503115,1755796238577,-480.0,0.00019637,2]
[380503116,1755796238586,-480.0,0.00019637,2]
[380503117,1755796238595,-480.0,0.00019637,2]
[380503118,1755796238605,-773.22,0.00019637,2]
[380503119,1755796238614,-480.0,0.00019637,2]
[380503120,1755796238623,-480.0,0.00019637,2]
[380503121,1755796238633,-1666.89,0.00019637,2]
[380503122,1755796238642,-480.0,0.00019637,2]
[380503123,1755796238650,-480.0,0.00019637,2]
[380503124,1755796238659,-480.0,0.00019637,2]
[380503125,1755796238669,-480.0,0.00019637,2]
[380503126,1755796238678,-574.32,0.00019637,2]
[380503127,1755796238687,-686.37,0.00019637,2]
[380503128,1755796238697,-480.0,0.00019637,2]
[380503129,1755796238706,-783.65,0.00019637,2]
[380503130,1755796238715,-991.06,0.00019637,2]
[380503131,1755796238725,-480.0,0.00019637,2]
[380503132,1755796238734,-480.0,0.00019637,2]
[380503133,1755796238743,-804.94,0.00019637,2]
[380503134,1755796238753,-480.0,0.00019637,2]
[380503135,1755796238763,-4916.94,0.00019637,2]
[380503136,1755796238772,-480.0,0.00019637,2]
[380503137,1755796238781,-1776.85,0.00019637,2]
[380503138,1755796238791,-918.37,0.00019637,2]
[380503139,1755796238800,-1076.14,0.00019637,2]
[380503140,1755796238809,-525.31,0.00019637,2]
[380503141,1755796238818,-2049.35,0.00019637,2]
[380503142,1755796238827,-480.0,0.00019637,2]
[380503143,1755796238836,-480.69358738,0.00019637,2]
[380503144,1755796238845,-1215.14,0.00019637,2]
[380503145,1755796238854,-793.31,0.00019637,2]
[380503146,1755796238863,-480.0,0.00019638,2]
[380503148,1755796238873,-480.0,0.00019638,2]
[380503150,1755796238884,-480.0,0.00019638,2]
[380503152,1755796238893,-405.0774063,0.00019638,2]
[380503154,1755796238902,-442.15785343,0.00019638,2]
[380503156,1755796238911,-480.0,0.00019638,2]
[380503157,1755796238921,-480.0,0.00019638,2]
[380503158,1755796238931,-1285.05,0.00019638,2]
[380503160,1755796238941,-884.72,0.00019638,2]
[380503162,1755796238950,-480.8074567,0.00019638,2]
[380503164,1755796238960,-978.38,0.00019638,2]
[380503166,1755796238969,-480.0,0.00019638,2]
[380503167,1755796238978,-480.0,0.00019638,2]
[380503168,1755796238988,-480.0,0.00019638,2]
[380503169,1755796238997,-480.0,0.00019638,2]
[380503171,1755796239007,-460.51946107,0.00019638,2]
[380503172,1755796239019,-460.0,0.00019638,2]
[380503173,1755796239029,-480.0,0.00019638,2]
[380503174,1755796239038,-480.0,0.00019638,2]
[380503175,1755796239048,-801.62,0.00019638,2]
[380503177,1755796239057,-480.0,0.00019638,2]
[380503179,1755796239066,-480.0,0.00019638,2]
[380503180,1755796239075,-1223.71,0.00019638,2]
[380503181,1755796239084,-461.4081386,0.00019638,2]
[380503182,1755796239093,-480.0,0.00019638,2]
[380503183,1755796239103,-677.58,0.00019638,2]
[380503184,1755796239112,-480.0,0.00019638,2]
[380503185,1755796239121,-448.81742787,0.00019638,2]
[380503186,1755796239130,-480.0,0.00019638,2]
[380503187,1755796239140,-480.0,0.00019638,2]
[380503188,1755796239150,-460.0,0.00019638,2]
[380503189,1755796239159,-480.0,0.00019638,2]
[380503190,1755796239168,-461.79154528,0.00019638,2]
[380503191,1755796239178,-480.0,0.00019638,2]
[380503192,1755796239187,-480.0,0.00019638,2]
[380503193,1755796239196,-480.0,0.00019638,2]